fUST/lending_fUST_20250809
["ID","MTS","AMOUNT","RATE_DAILY","PERIOD"]
[378155309,1754751041651,-460.0,0.00021917,2]
[378155311,1754751041660,-460.0,0.00021917,2]
[378155313,1754751041669,-535.19,0.00021917,2]
[378155315,1754751041681,-456.50422538,0.00021917,2]
[378155316,1754751041691,-460.0,0.00021917,2]
[378155317,1754751041701,-634.16,0.00021917,2]
[378155318,1754751041712,-460.0,0.00021917,2]
[378155319,1754751041722,-460.0,0.00021917,2]
[378155320,1754751041731,-706.3,0.00021917,2]
[378155321,1754751041741,-698.33,0.00021917,2]
[378155322,1754751041750,-460.0,0.00021917,2]
[378155323,1754751041760,-532.41,0.00021917,2]
[378155324,1754751041769,-646.08,0.00021917,2]
[378155325,1754751041779,-460.0,0.00021917,2]
[378155326,1754751041788,-495.38,0.00021917,2]
[378155327,1754751041798,-881.55,0.00021917,2]
[378155328,1754751041807,-460.0,0.00021917,2]
[378155329,1754751041817,-460.0,0.00021917,2]
[378155330,1754751041827,-460.0,0.00021917,2]
[378155331,1754751041836,-1889.19,0.00021917,2]
[378155332,1754751041845,-460.0,0.00021917,2]
[378155333,1754751041854,-460.0,0.00021917,2]
[378155334,1754751041864,-460.0,0.00021917,2]
[378155335,1754751041873,-460.0,0.00021917,2]
[378155336,1754751041882,-460.0,0.00021917,2]
[378155337,1754751041891,-460.0,0.00021917,2]
[378155338,1754751041901,-460.0,0.00021917,2]
[378155339,1754751041910,-1083.55,0.00021917,2]
[378155340,1754751041920,-460.0,0.00021917,2]
[378155341,1754751041930,-460.0,0.00021917,2]
[378155342,1754751041939,-959.65,0.00021917,2]
[378155343,1754751041948,-580.66,0.00021917,2]
[378155344,1754751041958,-460.0,0.00021917,2]
[378155345,1754751041967,-460.0,0.00021917,2]
[378155346,1754751041977,-460.0,0.00021917,2]
[378155347,1754751041986,-460.0,0.00021917,2]
[378155348,1754751041995,-446.20193772,0.00021917,2]
[378155349,1754751042005,-460.0,0.00021917,2]
[378155350,1754751042014,-460.0,0.00021917,2]
[378155351,1754751042023,-1054.74,0.00021917,2]
[378155352,1754751042032,-460.0,0.00021917,2]
[378155353,1754751042042,-460.0,0.00021917,2]
[378155354,1754751042052,-460.0,0.00021917,2]
[378155355,1754751042061,-589.35,0.00021917,2]
[378155356,1754751042071,-460.0,0.00021917,2]
[378155357,1754751042080,-460.0,0.00021917,2]
[378155358,1754751042090,-460.0,0.00021917,2]
[378155359,1754751042099,-460.0,0.00021917,2]
[378155360,1754751042108,-460.0,0.00021917,2]
[378155361,1754751042118,-460.0,0.00021917,2]
[378155362,1754751042127,-460.0,0.00021917,2]
[378155363,1754751042136,-817.5,0.00021917,2]
[378155364,1754751042146,-2090.99,0.00021917,2]
[378155365,1754751042155,-200.0,0.00021943,15]
[378155366,1754751042165,-200.0,0.00021943,15]
[378155367,1754751042174,-200.0,0.00021943,15]
[378155368,1754751042184,-200.0,0.00021943,15]
[378155369,1754751042193,-200.0,0.00021943,15]
[378155370,1754751042202,-250.0,0.00021973,2]
[378155371,1754751042211,-500.0,0.00021973,2]
[378155372,1754751042221,-555.79,0.00022,2]
[378155373,1754751042230,-168.0,0.00022,2]
[378155374,1754751042239,-9980.15477614,0.00022091,3]
[378155375,1754751042249,-219.7975719,0.00022091,2]
[378155377,1754751042259,-151.0,0.0002215,2]
[378155379,1754751042268,-246.76763945,0.00022173,2]
[378155381,1754751042278,-500.0,0.00022173,2]
[378155383,1754751042287,-500.0,0.00022173,2]
[378155385,1754751042297,-500.0,0.00022173,2]
[378155387,1754751042306,-500.0,0.00022173,2]
[378155388,1754751042315,-1029.21,0.00022189,2]
[378155389,1754751042325,-1029.21,0.0002219,2]
[378155390,1754751042334,-1029.21,0.0002219,2]
[378155391,1754751042344,-460.0,0.00022191,2]
[378155392,1754751042354,-460.0,0.00022191,2]
[378155393,1754751042364,-429.42875718,0.00022191,2]
[378155394,1754751042374,-460.0,0.00022191,2]
[378155395,1754751042383,-606.73903117,0.00022191,2]
[378155396,1754751042393,-460.0,0.00022191,2]
[378155397,1754751042402,-460.0,0.00022191,2]
[378155399,1754751042412,-186.7298308,0.00022191,2]
[378155401,1754751042426,-460.0,0.00022191,2]
[378155403,1754751042435,-460.0,0.00022191,2]
[378155405,1754751042445,-460.0,0.00022191,2]
[378155407,1754751042455,-460.0,0.00022191,2]
[378155409,1754751042464,-460.0,0.00022191,2]
[378155411,1754751042475,-460.0,0.00022191,2]
[378155413,1754751042485,-460.0,0.00022191,2]
[378155415,1754751042494,-460.0,0.00022191,2]
[378155417,1754751042504,-460.0,0.00022191,2]
[378155418,1754751042514,-460.0,0.00022191,2]
[378155419,1754751042523,-509.95,0.00022191,2]
[378155421,1754751042533,-460.0,0.00022191,2]
[378155423,1754751042542,-460.0,0.00022191,2]
[378155425,1754751042553,-460.0,0.00022191,2]
[378155427,1754751042562,-460.0,0.00022191,2]
[378155429,1754751042572,-460.0,0.00022191,2]
[378155431,1754751042582,-460.0,0.00022191,2]
[378155432,1754751042591,-460.0,0.00022191,2]
[378155434,1754751042601,-460.0,0.00022191,2]
[378155436,1754751042612,-460.0,0.00022191,2]
[378155437,1754751042623,-460.0,0.00022191,2]
[378155438,1754751042636,-460.0,0.00022191,2]
[378155439,1754751042645,-460.0,0.00022191,2]
[378155440,1754751042654,-460.0,0.00022191,2]
[378155441,1754751042664,-460.0,0.00022191,2]
[378155442,1754751042677,-460.0,0.00022191,2]
[378155443,1754751042686,-470.15,0.00022191,2]
[378155444,1754751042696,-460.0,0.00022191,2]
[378155445,1754751042706,-460.0,0.00022191,2]
[378155446,1754751042718,-460.0,0.00022191,2]
[378155447,1754751042727,-460.0,0.00022191,2]
[378155448,1754751042738,-460.0,0.00022191,2]
[378155449,1754751042747,-557.56009714,0.00022191,2]
[378155450,1754751042757,-460.0,0.00022191,2]
[378155451,1754751042767,-460.0,0.00022191,2]
[378155452,1754751042777,-460.0,0.00022191,2]
[378155453,1754751042787,-575.35883441,0.00022191,2]
[378155456,1754751042798,-460.0,0.00022191,2]
[378155457,1754751042809,-466.2050307,0.00022191,2]
[378155458,1754751042819,-646.82,0.00022191,2]
[378155459,1754751042829,-460.0,0.00022191,2]
[378155461,1754751042838,-1239.31,0.00022191,2]
[378155464,1754751042848,-924.13565029,0.00022191,2]
[378155467,1754751042867,-196.12434971,0.00022191,2]
[378155469,1754751042876,-72.07525029,0.00022191,2]
[378155471,1754751042888,-387.92474971,0.00022191,2]
[378155473,1754751042897,-460.0,0.00022191,2]
[378155474,1754751042907,-243.38921214,0.00022191,2]
[378155477,1754751042919,-326.77805351,0.00022191,2]
[378155478,1754751042929,-460.0,0.00022191,2]
[378155479,1754751042939,-518.43,0.00022191,2]
[378155480,1754751042949,-460.0,0.00022191,2]
[378155481,1754751042959,-460.0,0.00022191,2]
[378155482,1754751042968,-460.0,0.00022191,2]
[378155483,1754751042978,-476.85,0.00022191,2]
[378155484,1754751042988,-460.0,0.00022191,2]
[378155485,1754751042998,-467.18,0.00022191,2]
[378155486,1754751043008,-1608.0,0.00022191,2]
[378155487,1754751043018,-460.0,0.00022191,2]
[378155488,1754751043028,-613.41040564,0.00022191,2]
[378155489,1754751043040,-646.11959436,0.00022191,2]
[378155490,1754751043049,-554.96206601,0.00022191,2]
[378155491,1754751043060,-333.04850002,0.00022191,2]
[378155492,1754751043071,-460.0,0.00022191,2]
[378155493,1754751043080,-460.0,0.00022191,2]
[378155494,1754751043090,-460.0,0.00022191,2]
[378155495,1754751043100,-460.0,0.00022191,2]
[378155496,1754751043110,-460.0,0.00022191,2]
[378155497,1754751043120,-460.0,0.00022191,2]
[378155498,1754751043130,-1089.01,0.00022191,2]
[378155499,1754751043140,-460.0,0.00022191,2]
[378155500,1754751043150,-1054.85,0.00022191,2]
[378155501,1754751043159,-512.72277336,0.00022191,2]
[378155502,1754751043170,-460.0,0.00022191,2]
[378155503,1754751043180,-583.65,0.00022191,2]
[378155504,1754751043190,-460.0,0.00022191,2]
[378155505,1754751043200,-460.0,0.00022191,2]
[378155506,1754751043209,-460.0,0.00022191,2]
[378155507,1754751043219,-460.0,0.00022191,2]
[378155508,1754751043229,-3409.31,0.00022191,2]
[378155509,1754751043239,-460.0,0.00022191,2]
[378155510,1754751043248,-429.44604758,0.00022191,2]
[378155511,1754751043261,-30.55395242,0.00022191,2]
[378155512,1754751043270,-460.0,0.00022191,2]
[378155513,1754751043279,-460.0,0.00022191,2]
[378155514,1754751043288,-924.24,0.00022191,2]
[378155515,1754751043298,-460.0,0.00022191,2]
[378155516,1754751043307,-460.0,0.00022191,2]
[378155517,1754751043316,-634.16,0.00022191,2]
[378155518,1754751043327,-214.79111598,0.00022191,2]
[378155519,1754751043336,-706.3,0.00022191,2]
[378155520,1754751043346,-698.33,0.00022191,2]
[378155521,1754751043355,-510.58651523,0.00022191,2]
[378155522,1754751043365,-79.3664216,0.00022191,2]
[378155523,1754751043583,-453.0435784,0.00022191,2]
[378155524,1754751043592,-646.08,0.00022191,2]
[378155525,1754751043602,-495.38,0.00022191,2]
[378155526,1754751043611,-881.55,0.00022191,2]
[378155527,1754751043621,-460.0,0.00022191,2]
[378155528,1754751043635,-1889.19,0.00022191,2]
[378155529,1754751043645,-464.29726501,0.00022191,2]
[378155530,1754751043655,-460.0,0.00022191,2]
[378155531,1754751043664,-460.0,0.00022191,2]
[378155532,1754751043676,-1083.55,0.00022191,2]
[378155534,1754751043686,-959.65,0.00022191,2]
[378155535,1754751043695,-580.66,0.00022191,2]
[378155536,1754751043705,-460.0,0.00022191,2]
[378155537,1754751043715,-460.0,0.00022191,2]
[378155538,1754751043725,-460.0,0.00022191,2]
[378155539,1754751043734,-460.0,0.00022191,2]
[378155540,1754751043744,-1054.74,0.00022191,2]
[378155541,1754751043754,-460.0,0.00022191,2]
[378155542,1754751043764,-589.35,0.00022191,2]
[378155543,1754751043774,-460.0,0.00022191,2]
[378155544,1754751043783,-460.0,0.00022191,2]
[378155546,1754751043793,-460.0,0.00022191,2]
[378155547,1754751043803,-460.0,0.00022191,2]
[378155548,1754751043813,-817.5,0.00022191,2]
[378155549,1754751043823,-1125.17060572,0.00022398,2]
[378155550,1754751043833,-1029.21,0.00022464,2]
[378155551,1754751043843,-1029.21,0.00022464,2]
[378155552,1754751043853,-460.0,0.00022465,2]
[378155553,1754751043862,-460.0,0.00022465,2]
[378155554,1754751043872,-460.0,0.00022465,2]
[378155555,1754751043881,-590.804177,0.00022465,2]
[378155556,1754751043891,-460.0,0.00022465,2]
[378155557,1754751043901,-460.0,0.00022465,2]
[378155558,1754751043911,-460.0,0.00022465,2]
[378155559,1754751043923,-460.0,0.00022465,2]
[378155560,1754751043933,-460.0,0.00022465,2]
[378155561,1754751043942,-460.0,0.00022465,2]
[378155562,1754751043952,-460.0,0.00022465,2]
[378155563,1754751043963,-460.0,0.00022465,2]
[378155564,1754751043974,-463.04,0.00022465,2]
[378155565,1754751043984,-460.0,0.00022465,2]
[378155566,1754751043994,-476.49252751,0.00022465,2]
[378155567,1754751044005,-470.15,0.00022465,2]
[378155568,1754751044015,-497.4432277,0.00022465,2]
[378155569,1754751044024,-475.0,0.00022465,2]
[378155570,1754751044034,-460.0,0.00022465,2]
[378155571,1754751044044,-460.0,0.00022465,2]
[378155572,1754751044054,-460.0,0.00022465,2]
[378155573,1754751044064,-460.0,0.00022465,2]
[378155574,1754751044074,-646.82,0.00022465,2]
[378155575,1754751044084,-1239.31,0.00022465,2]
[378155576,1754751044094,-1120.26,0.00022465,2]
[378155577,1754751044104,-460.0,0.00022465,2]
[378155578,1754751044113,-518.43,0.00022465,2]
[378155579,1754751044123,-460.0,0.00022465,2]
[378155580,1754751044133,-187.06227509,0.00022465,2]
[378155581,1754751044146,-272.93772491,0.00022465,2]
[378155582,1754751044155,-476.85,0.00022465,2]
[378155583,1754751044164,-460.0,0.00022465,2]
[378155584,1754751044175,-467.18,0.00022465,2]
[378155585,1754751044184,-1608.0,0.00022465,2]
[378155587,1754751044193,-460.0,0.00022465,2]
[378155589,1754751044203,-446.73227509,0.00022465,2]
[378155590,1754751044340,-812.79772491,0.00022465,2]
[378155591,1754751044349,-460.0,0.00022465,2]
[378155592,1754751044359,-460.0,0.00022465,2]
[378155593,1754751044369,-460.0,0.00022465,2]
[378155594,1754751044378,-1089.01,0.00022465,2]
[378155595,1754751044388,-460.0,0.00022465,2]
[378155596,1754751044397,-1054.85,0.00022465,2]
[378155597,1754751044406,-460.0,0.00022465,2]
[378155598,1754751044417,-583.65,0.00022465,2]
[378155599,1754751044426,-460.0,0.00022465,2]
[378155600,1754751044435,-460.0,0.00022465,2]
[378155601,1754751044445,-460.0,0.00022465,2]
[378155602,1754751044454,-460.0,0.00022465,2]
[378155603,1754751044463,-3409.31,0.00022465,2]
[378155604,1754751044473,-460.0,0.00022465,2]
[378155605,1754751044482,-460.0,0.00022465,2]
[378155606,1754751044492,-460.0,0.00022465,2]
[378155607,1754751044501,-924.24,0.00022465,2]
[378155608,1754751044511,-460.0,0.00022465,2]
[378155609,1754751044520,-157.4,0.00022465,2]
[378155610,1754751044530,-634.16,0.00022465,2]
[378155611,1754751044540,-706.3,0.00022465,2]
[378155612,1754751044549,-698.33,0.00022465,2]
[378155613,1754751044559,-532.41,0.00022465,2]
[378155614,1754751044568,-646.08,0.00022465,2]
[378155615,1754751044578,-495.38,0.00022465,2]
[378155616,1754751044588,-881.55,0.00022465,2]
[378155617,1754751044597,-1889.19,0.00022465,2]
[378155618,1754751044606,-460.0,0.00022465,2]
[378155619,1754751044617,-460.0,0.00022465,2]
[378155620,1754751044626,-1083.55,0.00022465,2]
[378155621,1754751044640,-959.65,0.00022465,2]
[378155622,1754751044649,-448.47118239,0.00022465,2]
[378155693,1754751046940,-460.0,0.00021917,2]
[378155694,1754751046949,-460.0,0.00022191,2]
[378155695,1754751046958,-132.18881761,0.00022465,2]
[378155696,1754751046967,-460.0,0.00022465,2]
[378155697,1754751046976,-460.0,0.00022465,2]
[378155698,1754751046985,-460.0,0.00022465,2]
[378155699,1754751046994,-460.0,0.00022465,2]
[378155700,1754751047003,-1054.74,0.00022465,2]
[378155701,1754751047012,-589.35,0.00022465,2]
[378155702,1754751047021,-460.0,0.00022465,2]
[378155703,1754751047031,-817.5,0.00022465,2]
[378155704,1754751047040,-460.0,0.00022465,2]
[378155705,1754751047049,-216.61183532,0.00022669,2]
[378155706,1754751047058,-160.0,0.00022669,2]
[378155707,1754751047067,-58.70408764,0.00022669,2]
[378156312,1754751102103,5402.97728962,0.000199,2]
[378156313,1754751179253,640.0,0.00021451,7]
[378156314,1754751292812,6010.88666972,0.000199,2]
[378156315,1754751305393,315.0,0.00030137,120]
[378156316,1754751319668,178.718432,0.00020812,2]
[378156318,1754751441288,313.3966268,0.00020809,2]
[378156319,1754751471082,6777.20116595,0.00021,3]
[378156320,1754751471104,19320.59044405,0.00021,3]
[378156321,1754751480431,679.40955595,0.000199,2]
[378156322,1754751480462,5192.89339475,0.000199,2]
[378156323,1754751515070,5000.0,0.00019178,2]
[378156324,1754751667666,6047.19687999,0.000199,2]
[378156325,1754751702226,150.0,0.00020364,2]
[378156327,1754751781275,338.101965,0.00013699,2]
[378156328,1754751781490,338.101965,0.00020187,2]
[378156329,1754751827468,162.79145,0.00021005,2]
[378156330,1754751854079,341.5715874,0.00020777,2]
[378156331,1754751858954,2429.34275786,0.000199,2]
[378156332,1754751858980,3568.6247429,0.000199,2]
[378156334,1754751952864,16431.3752571,0.00020686,2]
[378156335,1754751952892,8468.6247429,0.00020686,2]
[378156336,1754751972684,195.92608958,0.00021281,2]
[378156338,1754752043768,6533.46022369,0.000199,2]
[378156339,1754752128767,225.03091061,0.00020867,2]
[378156345,1754752154260,150.0,0.00026425,30]
[378156346,1754752154682,150.0,0.00027683,30]
[378156365,1754752232294,4576.95803322,0.000199,2]
[378156369,1754752232328,1738.72018283,0.000199,2]
[378156774,1754752238494,152.34,0.00026,30]
[378156787,1754752238607,-154.0,0.00021511,2]
[378156789,1754752238619,-1200.0,0.00021511,2]
[378156791,1754752238629,-1200.0,0.00021512,2]
[378156793,1754752238638,-300.0,0.00021512,2]
[378156797,1754752238647,-300.0,0.00021512,2]
[378156799,1754752238657,-50000.0,0.00021513,2]
[378156800,1754752238666,-460.0,0.00021513,2]
[378156801,1754752238675,-460.0,0.00021513,2]
[378156802,1754752238685,-460.0,0.00021513,2]
[378156803,1754752238695,-460.0,0.00021513,2]
[378156804,1754752238704,-460.0,0.00021513,2]
[378156805,1754752238715,-933.12,0.00021513,2]
[378156806,1754752238725,-451.96522147,0.00021513,2]
[378156807,1754752238734,-460.0,0.00021513,2]
[378156808,1754752238744,-460.0,0.00021513,2]
[378156809,1754752238754,-460.0,0.00021513,2]
[378156810,1754752238764,-460.0,0.00021513,2]
[378156811,1754752238774,-460.0,0.00021513,2]
[378156812,1754752238783,-586.5,0.00021513,2]
[378156813,1754752238793,-558.54,0.00021513,2]
[378156814,1754752238802,-460.0,0.00021513,2]
[378156815,1754752238811,-460.0,0.00021513,2]
[378156816,1754752238821,-460.0,0.00021513,2]
[378156817,1754752238831,-504.62,0.00021513,2]
[378156818,1754752238841,-460.0,0.00021513,2]
[378156819,1754752238850,-460.0,0.00021513,2]
[378156820,1754752238860,-1024.96,0.00021513,2]
[378156821,1754752238870,-394.89674894,0.00021513,2]
[378156822,1754752238879,-460.0,0.00021513,2]
[378156823,1754752238888,-544.41696145,0.00021513,2]
[378156824,1754752238898,-332.9916298,0.00021513,2]
[378156825,1754752238907,-627.42,0.00021513,2]
[378156826,1754752238918,-1110.64,0.00021513,2]
[378156827,1754752238927,-460.0,0.00021513,2]
[378156828,1754752238937,-460.0,0.00021513,2]
[378156829,1754752238946,-460.0,0.00021513,2]
[378156830,1754752238957,-460.0,0.00021513,2]
[378156831,1754752238967,-460.0,0.00021654,2]
[378156832,1754752238976,-460.0,0.00021654,2]
[378156833,1754752238986,-504.04111736,0.00021654,2]
[378156834,1754752238995,-460.0,0.00021654,2]
[378156836,1754752239005,-460.0,0.00021654,2]
[378156837,1754752239015,-927.6,0.00021654,2]
[378156838,1754752239024,-452.60459102,0.00021654,2]
[378156840,1754752239033,-460.0,0.00021654,2]
[378156841,1754752239043,-460.0,0.00021654,2]
[378156843,1754752239052,-460.0,0.00021654,2]
[378156844,1754752239062,-460.0,0.00021654,2]
[378156846,1754752239072,-500.0,0.00021655,2]
[378156849,1754752239082,-500.0,0.00021655,2]
[378156851,1754752239091,-500.0,0.00021655,2]
[378156853,1754752239100,-500.0,0.00021655,2]
[378156854,1754752239110,-6315.67821596,0.00021655,2]
[378156856,1754752239123,-460.0,0.00021715,2]
[378156858,1754752239132,-460.0,0.00021715,2]
[378156861,1754752239146,-460.0,0.00021715,2]
[378156863,1754752239156,-1393.84,0.00021715,2]
[378156865,1754752239166,-460.0,0.00021715,2]
[378156867,1754752239176,-1968.56,0.00021715,2]
[378156869,1754752239185,-9980.15477614,0.00021716,3]
[378156871,1754752239195,-500.0,0.00021717,2]
[378156873,1754752239205,-329.69635786,0.00021717,2]
[378156875,1754752239215,-500.0,0.00021786,2]
[378156877,1754752239225,-460.0,0.00021787,2]
[378156879,1754752239234,-466.54363822,0.00021787,2]
[378156881,1754752239244,-460.0,0.00021787,2]
[378156883,1754752239256,-933.12,0.00021787,2]
[378156885,1754752239266,-460.0,0.00021787,2]
[378156887,1754752239275,-460.0,0.00021787,2]
[378156889,1754752239285,-460.0,0.00021787,2]
[378156892,1754752239295,-586.5,0.00021787,2]
[378156893,1754752239304,-558.54,0.00021787,2]
[378156895,1754752239313,-461.53,0.00021787,2]
[378156896,1754752239322,-460.0,0.00021787,2]
[378156897,1754752239332,-504.62,0.00021787,2]
[378156898,1754752239341,-460.0,0.00021787,2]
[378156899,1754752239350,-460.0,0.00021787,2]
[378156900,1754752239359,-1024.96,0.00021787,2]
[378156901,1754752239369,-460.0,0.00021787,2]
[378156902,1754752239378,-627.42,0.00021787,2]
[378156903,1754752239388,-1110.64,0.00021787,2]
[378156904,1754752239397,-460.0,0.00021787,2]
[378156905,1754752239406,-759.38,0.00021813,2]
[378156906,1754752239416,-460.0,0.00021813,2]
[378156907,1754752239425,-460.0,0.00021813,2]
[378156908,1754752239434,-460.0,0.00021813,2]
[378156909,1754752239444,-460.0,0.00021813,2]
[378156910,1754752239453,-1708.55,0.00021813,2]
[378156912,1754752239465,-460.0,0.00021813,2]
[378156913,1754752239474,-501.07347936,0.00021813,2]
[378156915,1754752239483,-476.07,0.00021813,2]
[378156917,1754752239492,-460.0,0.00021813,2]
[378156920,1754752239502,-966.51,0.00021813,2]
[378156922,1754752239512,-723.96,0.00021813,2]
[378156924,1754752239522,-460.0,0.00021813,2]
[378156926,1754752239531,-460.0,0.00021813,2]
[378156928,1754752239541,-460.0,0.00021813,2]
[378156930,1754752239551,-460.0,0.00021814,2]
[378156932,1754752239559,-460.0,0.00021814,2]
[378156934,1754752239569,-500.0,0.00021814,2]
[378156936,1754752239578,-500.0,0.00021814,2]
[378156938,1754752239588,-500.0,0.00021814,2]
[378156940,1754752239597,-500.0,0.00021814,2]
[378156941,1754752239606,-460.0,0.00021814,2]
[378156943,1754752239616,-460.0,0.00021814,2]
[378156945,1754752239626,-460.0,0.00021814,2]
[378156948,1754752239635,-460.0,0.00021814,2]
[378156950,1754752239645,-460.0,0.00021814,2]
[378156952,1754752239655,-460.0,0.00021814,2]
[378156953,1754752239664,-460.0,0.00021814,2]
[378156955,1754752239680,-288.2804357,0.00021814,2]
[378156957,1754752239689,-460.0,0.00021814,2]
[378156959,1754752239699,-460.0,0.00021814,2]
[378156961,1754752239708,-460.0,0.00021814,2]
[378156963,1754752239717,-460.0,0.00021814,2]
[378156965,1754752239728,-585.07,0.00021814,2]
[378156967,1754752239737,-460.0,0.00021814,2]
[378156969,1754752239747,-606.73903117,0.00021814,2]
[378156971,1754752239756,-460.0,0.00021814,2]
[378156973,1754752239767,-460.0,0.00021814,2]
[378156975,1754752239780,-429.42875718,0.00021814,2]
[378156977,1754752239790,-460.0,0.00021814,2]
[378156979,1754752239799,-604.09,0.00021814,2]
[378156981,1754752239809,-460.0,0.00021814,2]
[378156983,1754752239819,-460.0,0.00021814,2]
[378156985,1754752239828,-636.19,0.00021814,2]
[378156987,1754752239838,-460.0,0.00021814,2]
[378156989,1754752239848,-523.71,0.00021814,2]
[378156991,1754752239857,-460.0,0.00021814,2]
[378156993,1754752239867,-460.0,0.00021814,2]
[378156995,1754752239876,-460.0,0.00021814,2]
[378156997,1754752239886,-460.0,0.00021814,2]
[378156999,1754752239896,-578.12163147,0.00021814,2]
[378157001,1754752239905,-460.0,0.00021814,2]
[378157003,1754752239915,-460.0,0.00021814,2]
[378157005,1754752239924,-460.0,0.00021814,2]
[378157008,1754752239935,-460.0,0.00021814,2]
[378157010,1754752239944,-460.0,0.00021814,2]
[378157012,1754752239954,-460.0,0.00021814,2]
[378157014,1754752239964,-460.0,0.00021814,2]
[378157016,1754752239974,-460.0,0.00021814,2]
[378157018,1754752239983,-460.0,0.00021814,2]
[378157020,1754752239994,-460.0,0.00021814,2]
[378157022,1754752240004,-460.0,0.00021814,2]
[378157024,1754752240013,-460.0,0.00021814,2]
[378157026,1754752240023,-460.0,0.00021814,2]
[378157028,1754752240033,-1787.57,0.00021814,2]
[378157030,1754752240042,-1787.57,0.00021814,2]
[378157032,1754752240051,-1787.57,0.00021814,2]
[378157034,1754752240061,-1787.57,0.00021814,2]
[378157036,1754752240070,-460.0,0.00021814,2]
[378157038,1754752240079,-460.0,0.00021814,2]
[378157040,1754752240088,-460.0,0.00021814,2]
[378157042,1754752240098,-460.0,0.00021814,2]
[378157044,1754752240107,-460.0,0.00021814,2]
[378157046,1754752240120,-3875.91,0.00021814,2]
[378157048,1754752240129,-460.0,0.00021814,2]
[378157050,1754752240139,-460.0,0.00021814,2]
[378157052,1754752240148,-460.0,0.00021814,2]
[378157054,1754752240158,-460.0,0.00021814,2]
[378157056,1754752240167,-460.0,0.00021814,2]
[378157058,1754752240176,-460.0,0.00021814,2]
[378157060,1754752240186,-460.0,0.00021814,2]
[378157062,1754752240195,-460.0,0.00021814,2]
[378157064,1754752240204,-460.0,0.00021814,2]
[378157066,1754752240215,-460.0,0.00021814,2]
[378157068,1754752240225,-460.0,0.00021814,2]
[378157070,1754752240234,-460.0,0.00021814,2]
[378157072,1754752240244,-460.0,0.00021814,2]
[378157074,1754752240253,-460.0,0.00021814,2]
[378157076,1754752240263,-707.92,0.00021814,2]
[378157078,1754752240272,-460.0,0.00021814,2]
[378157080,1754752240282,-460.0,0.00021814,2]
[378157082,1754752240291,-324.62236031,0.00021814,2]
[378157084,1754752240301,-670.59,0.00021814,2]
[378157086,1754752240310,-460.0,0.00021814,2]
[378157088,1754752240319,-507.77,0.00021814,2]
[378157090,1754752240328,-460.0,0.00021814,2]
[378157091,1754752240338,-460.0,0.00021814,2]
[378157093,1754752240347,-460.0,0.00021814,2]
[378157095,1754752240357,-460.0,0.00021814,2]
[378157097,1754752240367,-460.0,0.00021814,2]
[378157100,1754752240376,-460.0,0.00021814,2]
[378157101,1754752240385,-341.76280935,0.00021814,2]
[378157103,1754752240395,-460.0,0.00021814,2]